[Event "NJSK 2022 Jeugd B"]
[Site "Almelo, Netherlands"]
[Date "2022.05.06"]
[Round "6.6"]
[White "Van Egmond, Tom"]
[Black "Wage, Sander"]
[Result "1/2-1/2"]
[TimeControl "90min/40moves + 30min + 30sec/move"]
[WhiteElo "1672"]
[BlackElo "1859"]

1. e4 {[%clk 01:30:58]} {[%emt 00:00:02]} c5 {[%clk 01:30:57]} {[%emt
00:00:03]} 2. Nf3 {[%clk 01:31:19]} {[%emt 00:00:08]} Nc6 {[%clk 01:31:24]}
{[%emt 00:00:04]} 3. Bb5 {[%clk 01:31:37]} {[%emt 00:00:12]} g6 {[%clk
01:31:51]} {[%emt 00:00:03]} 4. O-O {[%clk 01:31:57]} {[%emt 00:00:10]} Bg7
{[%clk 01:32:18]} {[%emt 00:00:03]} 5. c3 {[%clk 01:32:08]} {[%emt 00:00:19]}
e5 {[%clk 01:32:43]} {[%emt 00:00:04]} 6. d4 {[%clk 01:30:49]} {[%emt
00:01:49]} cxd4 {[%clk 01:33:03]} {[%emt 00:00:09]} 7. cxd4 {[%clk 01:31:08]}
{[%emt 00:00:11]} exd4 {[%clk 01:33:30]} {[%emt 00:00:03]} 8. Bf4 {[%clk
01:31:26]} {[%emt 00:00:12]} a6 {[%clk 01:33:06]} {[%emt 00:00:54]} 9. Ba4
{[%clk 01:31:47]} {[%emt 00:00:10]} Nge7 {[%clk 01:32:25]} {[%emt 00:01:10]} 10.
Bd6 {[%clk 01:32:10]} {[%emt 00:00:06]} b5 {[%clk 01:30:36]} {[%emt 00:02:20]}
11. Bb3 {[%clk 01:32:20]} {[%emt 00:00:20]} O-O {[%clk 01:29:00]} {[%emt
00:02:06]} 12. Nbd2 {[%clk 01:31:29]} {[%emt 00:01:21]} Bb7 {[%clk 01:28:36]}
{[%emt 00:00:54]} 13. Re1 {[%clk 01:31:04]} {[%emt 00:00:55]} h6 {[%clk
01:19:50]} {[%emt 00:09:17]} 14. a4 {[%clk 01:23:30]} {[%emt 00:08:04]} Re8
{[%clk 01:17:53]} {[%emt 00:02:26]} 15. Qe2 {[%clk 01:20:58]} {[%emt 00:03:02]}
Nc8 {[%clk 01:08:48]} {[%emt 00:09:35]} 16. Bc5 {[%clk 01:10:03]} {[%emt
00:11:24]} bxa4 {[%clk 00:58:11]} {[%emt 00:11:07]} 17. Rxa4 {[%clk 01:03:12]}
{[%emt 00:07:21]} d6 {[%clk 00:57:35]} {[%emt 00:01:06]} 18. Bb4 {[%clk
00:38:12]} {[%emt 00:25:30]} a5 {[%clk 00:49:23]} {[%emt 00:08:43]} 19. Qb5
{[%clk 00:30:58]} {[%emt 00:07:44]} Qc7 {[%clk 00:48:15]} {[%emt 00:01:38]} 20.
Bxa5 {[%clk 00:25:33]} {[%emt 00:05:55]} Rxa5 {[%clk 00:38:22]} {[%emt
00:10:23]} 21. Rxa5 {[%clk 00:25:54]} {[%emt 00:00:08]} Qxa5 {[%clk 00:38:44]}
{[%emt 00:00:08]} 22. Qxb7 {[%clk 00:24:58]} {[%emt 00:01:26]} N8e7 {[%clk
00:38:17]} {[%emt 00:00:56]} 23. Nc4 {[%clk 00:23:22]} {[%emt 00:02:06]} Qd8
{[%clk 00:35:01]} {[%emt 00:03:46]} 24. Ba4 {[%clk 00:21:46]} {[%emt 00:02:06]}
Qa8 {[%clk 00:34:10]} {[%emt 00:01:21]} 25. Qxa8 {[%clk 00:12:39]} {[%emt
00:09:38]} Rxa8 {[%clk 00:34:33]} {[%emt 00:00:07]} 26. Bxc6 {[%clk 00:12:17]}
{[%emt 00:00:52]} Nxc6 {[%clk 00:34:58]} {[%emt 00:00:05]} 27. Nxd6 {[%clk
00:12:30]} {[%emt 00:00:17]} Rb8 {[%clk 00:33:56]} {[%emt 00:01:32]} 28. Rb1
{[%clk 00:10:29]} {[%emt 00:02:30]} Rb4 {[%clk 00:31:55]} {[%emt 00:02:32]} 29.
Nd2 {[%clk 00:07:01]} {[%emt 00:03:59]} Na5 {[%clk 00:28:26]} {[%emt 00:03:58]}
30. f4 {[%clk 00:06:03]} {[%emt 00:01:28]} d3 {[%clk 00:26:07]} {[%emt
00:02:50]} 31. e5 {[%clk 00:05:33]} {[%emt 00:01:00]} Rxf4 {[%clk 00:18:28]}
{[%emt 00:08:08]} 32. b4 {[%clk 00:05:58]} {[%emt 00:00:05]} Bxe5 {[%clk
00:14:37]} {[%emt 00:04:21]} 33. g3 {[%clk 00:05:36]} {[%emt 00:00:53]} Rg4
{[%clk 00:13:02]} {[%emt 00:02:05]} 34. Nxf7 {[%clk 00:05:37]} {[%emt
00:00:29]} Kxf7 {[%clk 00:12:23]} {[%emt 00:01:09]} 35. bxa5 {[%clk 00:05:55]}
{[%emt 00:00:12]} Ra4 {[%clk 00:10:46]} {[%emt 00:02:08]} 36. Nb3 {[%clk
00:05:47]} {[%emt 00:00:37]} Bc3 {[%clk 00:09:30]} {[%emt 00:01:45]} 37. Rd1
{[%clk 00:05:11]} {[%emt 00:01:07]} Ra3 {[%clk 00:08:51]} {[%emt 00:01:09]} 38.
Nd2 {[%clk 00:03:33]} {[%emt 00:02:08]} Rxa5 {[%clk 00:08:56]} {[%emt
00:00:26]} 39. Ne4 {[%clk 00:03:49]} {[%emt 00:00:14]} Bd4+ {[%clk 00:07:43]}
{[%emt 00:01:42]} 40. Kf1 {[%clk 00:01:40]} {[%emt 00:02:40]} 1/2-1/2

[Event "NJSK 2022 Jeugd B"]
[Site "Almelo, Netherlands"]
[Date "2022.05.06"]
[Round "6.7"]
[White "Aarts, Joaquin"]
[Black "Alvares, Thomas"]
[Result "1/2-1/2"]
[TimeControl "90min/40moves + 30min + 30sec/move"]
[WhiteElo "1631"]
[BlackElo "1789"]

1. d4 {[%clk 01:30:56]} {[%emt 00:00:03]} Nf6 {[%clk 01:30:54]} {[%emt
00:00:08]} 2. Bf4 {[%clk 01:31:22]} {[%emt 00:00:04]} d5 {[%clk 01:31:19]}
{[%emt 00:00:05]} 3. e3 {[%clk 01:31:47]} {[%emt 00:00:06]} c5 {[%clk
01:31:43]} {[%emt 00:00:03]} 4. c3 {[%clk 01:32:13]} {[%emt 00:00:05]} Nc6
{[%clk 01:32:07]} {[%emt 00:00:06]} 5. Nf3 {[%clk 01:32:31]} {[%emt 00:00:12]}
Qb6 {[%clk 01:32:29]} {[%emt 00:00:09]} 6. Qb3 {[%clk 01:32:25]} {[%emt
00:00:36]} c4 {[%clk 01:32:52]} {[%emt 00:00:07]} 7. Qc2 {[%clk 01:32:43]}
{[%emt 00:00:11]} Bf5 {[%clk 01:33:12]} {[%emt 00:00:10]} 8. Qc1 {[%clk
01:32:57]} {[%emt 00:00:16]} Nh5 {[%clk 01:33:21]} {[%emt 00:00:21]} 9. Bg3
{[%clk 01:29:22]} {[%emt 00:04:06]} Nxg3 {[%clk 01:33:45]} {[%emt 00:00:06]} 10.
hxg3 {[%clk 01:29:49]} {[%emt 00:00:03]} g6 {[%clk 01:34:03]} {[%emt 00:00:11]}
11. Nbd2 {[%clk 01:30:00]} {[%emt 00:00:19]} h5 {[%clk 01:34:21]} {[%emt
00:00:12]} 12. Nh4 {[%clk 01:21:14]} {[%emt 00:09:16]} Bd7 {[%clk 01:33:26]}
{[%emt 00:01:25]} 13. e4 {[%clk 01:21:11]} {[%emt 00:00:33]} e6 {[%clk
01:23:49]} {[%emt 00:10:07]} 14. e5 {[%clk 01:21:11]} {[%emt 00:00:31]} Bh6
{[%clk 01:22:22]} {[%emt 00:01:57]} 15. Be2 {[%clk 01:16:05]} {[%emt 00:05:35]}
Qa5 {[%clk 01:19:49]} {[%emt 00:03:03]} 16. Nhf3 {[%clk 01:11:19]} {[%emt
00:05:16]} b5 {[%clk 01:17:11]} {[%emt 00:03:08]} 17. a3 {[%clk 01:11:23]}
{[%emt 00:00:26]} Qb6 {[%clk 01:15:16]} {[%emt 00:02:26]} 18. Ng1 {[%clk
00:58:01]} {[%emt 00:13:51]} a5 {[%clk 01:11:00]} {[%emt 00:04:46]} 19. f4
{[%clk 00:57:42]} {[%emt 00:00:49]} Rb8 {[%clk 01:09:06]} {[%emt 00:02:24]} 20.
Nh3 {[%clk 00:49:41]} {[%emt 00:08:32]} b4 {[%clk 01:03:57]} {[%emt 00:05:39]}
21. axb4 {[%clk 00:48:22]} {[%emt 00:01:49]} axb4 {[%clk 01:03:53]} {[%emt
00:00:33]} 22. O-O {[%clk 00:45:55]} {[%emt 00:02:56]} Ne7 {[%clk 00:53:33]}
{[%emt 00:10:51]} 23. Kh2 {[%clk 00:39:04]} {[%emt 00:07:21]} Nf5 {[%clk
00:52:50]} {[%emt 00:01:13]} 24. Nf3 {[%clk 00:39:18]} {[%emt 00:00:16]} Ke7
{[%clk 00:51:01]} {[%emt 00:02:20]} 25. Bd1 {[%clk 00:39:18]} {[%emt 00:00:30]}
Ra8 {[%clk 00:45:07]} {[%emt 00:06:24]} 26. Re1 {[%clk 00:36:30]} {[%emt
00:03:16]} Bc6 {[%clk 00:44:03]} {[%emt 00:01:35]} 27. Bc2 {[%clk 00:36:27]}
{[%emt 00:00:34]} Rxa1 {[%clk 00:42:56]} {[%emt 00:01:36]} 28. Qxa1 {[%clk
00:36:53]} {[%emt 00:00:04]} Ra8 {[%clk 00:43:06]} {[%emt 00:00:20]} 29. Qc1
{[%clk 00:37:03]} {[%emt 00:00:19]} bxc3 {[%clk 00:40:16]} {[%emt 00:03:21]} 30.
bxc3 {[%clk 00:37:20]} {[%emt 00:00:13]} Ra2 {[%clk 00:38:27]} {[%emt
00:02:19]} 31. Bb1 {[%clk 00:27:48]} {[%emt 00:10:02]} Ra1 {[%clk 00:36:28]}
{[%emt 00:02:29]} 32. Qc2 {[%clk 00:28:14]} {[%emt 00:00:04]} Ba4 {[%clk
00:35:40]} {[%emt 00:01:17]} 33. Qc1 {[%clk 00:27:43]} {[%emt 00:01:01]} Bf8
{[%clk 00:34:08]} {[%emt 00:02:02]} 34. Rf1 {[%clk 00:26:56]} {[%emt 00:01:16]}
Ke8 {[%clk 00:31:07]} {[%emt 00:03:31]} 35. Nd2 {[%clk 00:24:54]} {[%emt
00:02:33]} Ba3 {[%clk 00:24:00]} {[%emt 00:07:38]} 36. Qe1 {[%clk 00:25:19]}
{[%emt 00:00:05]} Bc2 {[%clk 00:23:52]} {[%emt 00:00:38]} 37. Qf2 {[%clk
00:16:59]} {[%emt 00:08:50]} Rxb1 {[%clk 00:23:00]} {[%emt 00:01:22]} 38. Nxb1
{[%clk 00:17:14]} {[%emt 00:00:15]} Bxb1 {[%clk 00:23:21]} {[%emt 00:00:09]} 39.
Qd2 {[%clk 00:16:03]} {[%emt 00:01:41]} Kf8 {[%clk 00:21:18]} {[%emt 00:02:34]}
40. Ng5 {[%clk 00:09:26]} {[%emt 00:07:07]} Bd3 {[%clk 00:11:03]} {[%emt
00:10:45]} 41. Qa2 {[%clk 00:01:59]} {[%emt 00:07:58]} Bxf1 {[%clk 00:01:39]}
{[%emt 00:09:54]} 42. Qxa3+ {[%clk 00:02:25]} {[%emt 00:00:04]} Kg7 {[%clk
00:01:51]} {[%emt 00:00:18]} 43. Kh3 {[%clk 00:24:22]} {[%emt 00:08:32]} Be2
{[%clk 00:23:26]} {[%emt 00:08:56]} 44. Qa4 {[%clk 00:20:46]} {[%emt 00:04:06]}
Qb1 {[%clk 00:19:59]} {[%emt 00:03:56]} 45. Kh2 {[%clk 00:19:22]} {[%emt
00:01:53]} Nh6 {[%clk 00:18:39]} {[%emt 00:01:51]} 46. Nxe6+ {[%clk 00:19:07]}
{[%emt 00:00:45]} fxe6 {[%clk 00:17:08]} {[%emt 00:02:01]} 47. Qd7+ {[%clk
00:19:10]} {[%emt 00:00:27]} Nf7 {[%clk 00:17:31]} {[%emt 00:00:07]} 48. Qxe6
{[%clk 00:17:31]} {[%emt 00:02:09]} Qf5 {[%clk 00:17:13]} {[%emt 00:00:48]} 49.
Qxd5 {[%clk 00:17:28]} {[%emt 00:00:34]} h4 {[%clk 00:16:32]} {[%emt 00:01:10]}
50. gxh4 {[%clk 00:16:23]} {[%emt 00:01:35]} Qxf4+ {[%clk 00:16:11]} {[%emt
00:00:52]} 51. Kg1 {[%clk 00:10:29]} {[%emt 00:06:24]} Bd3 {[%clk 00:14:47]}
{[%emt 00:01:54]} 52. e6 {[%clk 00:09:34]} {[%emt 00:01:25]} Be4 {[%clk
00:11:20]} {[%emt 00:03:56]} 53. Qd7 {[%clk 00:07:37]} {[%emt 00:02:27]} Qe3+
{[%clk 00:11:11]} {[%emt 00:00:39]} 54. Kh2 {[%clk 00:06:40]} {[%emt 00:01:27]}
Qf2 {[%clk 00:10:42]} {[%emt 00:01:00]} 55. Qxf7+ {[%clk 00:07:06]} {[%emt
00:00:04]} Qxf7 {[%clk 00:11:06]} {[%emt 00:00:06]} 56. exf7 {[%clk 00:07:33]}
{[%emt 00:00:03]} Kxf7 {[%clk 00:11:27]} {[%emt 00:00:09]} 57. g4 {[%clk
00:07:43]} {[%emt 00:00:20]} Ke6 {[%clk 00:09:02]} {[%emt 00:02:55]} 58. Kg3
{[%clk 00:08:01]} {[%emt 00:00:12]} Kf6 {[%clk 00:07:07]} {[%emt 00:02:25]} 59.
Kf4 {[%clk 00:07:57]} {[%emt 00:00:33]} Bd5 {[%clk 00:05:12]} {[%emt 00:02:25]}
60. Ke3 {[%clk 00:03:35]} {[%emt 00:04:53]} Bf7 {[%clk 00:03:23]} {[%emt
00:02:18]} 61. Kf4 {[%clk 00:02:14]} {[%emt 00:01:51]} Bd5 {[%clk 00:02:14]}
{[%emt 00:01:39]} 1/2-1/2

[Event "NJSK 2022 Jeugd B"]
[Site "Almelo, Netherlands"]
[Date "2022.05.06"]
[Round "6.8"]
[White "De Heij, Mees"]
[Black "Blom, Rens"]
[Result "0-1"]
[TimeControl "90min/40moves + 30min + 30sec/move"]
[WhiteElo "1622"]
[BlackElo "1699"]

1. e4 {[%clk 01:30:58]} {[%emt 00:00:02]} d6 {[%clk 01:30:57]} {[%emt
00:00:04]} 2. d4 {[%clk 01:31:24]} {[%emt 00:00:04]} Nf6 {[%clk 01:31:23]}
{[%emt 00:00:04]} 3. Nc3 {[%clk 01:31:49]} {[%emt 00:00:05]} g6 {[%clk
01:31:51]} {[%emt 00:00:05]} 4. Be3 {[%clk 01:31:54]} {[%emt 00:00:23]} c6
{[%clk 01:32:15]} {[%emt 00:00:05]} 5. a4 {[%clk 01:31:49]} {[%emt 00:00:34]}
Nbd7 {[%clk 01:32:15]} {[%emt 00:00:31]} 6. f4 {[%clk 01:32:00]} {[%emt
00:00:18]} e5 {[%clk 01:32:13]} {[%emt 00:00:33]} 7. Nf3 {[%clk 01:25:37]}
{[%emt 00:06:52]} Ng4 {[%clk 01:24:06]} {[%emt 00:08:36]} 8. Qd2 {[%clk
01:23:15]} {[%emt 00:02:51]} Bh6 {[%clk 01:19:41]} {[%emt 00:04:56]} 9. Ne2
{[%clk 00:57:24]} {[%emt 00:26:21]} Ndf6 {[%clk 01:08:51]} {[%emt 00:11:21]} 10.
Qd3 {[%clk 00:52:20]} {[%emt 00:05:34]} Nxe4 {[%clk 01:00:24]} {[%emt
00:08:57]} 11. h3 {[%clk 00:42:50]} {[%emt 00:10:00]} Nxe3 {[%clk 00:55:02]}
{[%emt 00:05:52]} 12. Qxe3 {[%clk 00:42:09]} {[%emt 00:01:08]} f5 {[%clk
00:50:11]} {[%emt 00:05:23]} 13. dxe5 {[%clk 00:41:21]} {[%emt 00:01:18]} dxe5
{[%clk 00:49:48]} {[%emt 00:00:53]} 14. Nxe5 {[%clk 00:40:57]} {[%emt
00:00:53]} Qa5+ {[%clk 00:49:33]} {[%emt 00:00:47]} 15. c3 {[%clk 00:40:02]}
{[%emt 00:01:25]} Qxe5 {[%clk 00:49:00]} {[%emt 00:01:03]} 16. fxe5 {[%clk
00:40:03]} {[%emt 00:00:28]} Bxe3 {[%clk 00:49:23]} {[%emt 00:00:07]} 17. Rh2
{[%clk 00:27:14]} {[%emt 00:13:19]} Be6 {[%clk 00:47:57]} {[%emt 00:01:57]} 18.
g3 {[%clk 00:22:11]} {[%emt 00:05:32]} Bd2+ {[%clk 00:47:44]} {[%emt 00:00:44]}
19. Kd1 {[%clk 00:22:13]} {[%emt 00:00:27]} Bb3# {[%clk 00:47:37]} {[%emt
00:00:08]} 0-1

[Event "NJSK 2022 Jeugd B"]
[Site "Almelo, Netherlands"]
[Date "2022.05.06"]
[Round "6.9"]
[White "Knol, Daniel"]
[Black "Wierenga, Jael"]
[Result "0-1"]
[TimeControl "90min/40moves + 30min + 30sec/move"]
[WhiteElo "1685"]
[BlackElo "1691"]

1. e4 {[%clk 01:31:00]} c5 {[%clk 01:30:45]} {[%emt 00:00:15]} 2. c3 {[%clk
01:31:19]} {[%emt 00:00:10]} Nf6 {[%clk 01:31:04]} {[%emt 00:00:12]} 3. e5
{[%clk 01:31:43]} {[%emt 00:00:07]} Nd5 {[%clk 01:31:31]} {[%emt 00:00:02]} 4.
Nf3 {[%clk 01:32:05]} {[%emt 00:00:07]} d6 {[%clk 01:31:49]} {[%emt 00:00:13]}
5. exd6 {[%clk 01:32:12]} {[%emt 00:00:23]} e6 {[%clk 01:31:54]} {[%emt
00:00:24]} 6. d4 {[%clk 01:30:38]} {[%emt 00:02:04]} Bxd6 {[%clk 01:29:33]}
{[%emt 00:02:51]} 7. Bc4 {[%clk 01:26:08]} {[%emt 00:04:59]} O-O {[%clk
01:20:21]} {[%emt 00:09:42]} 8. O-O {[%clk 01:26:31]} {[%emt 00:00:06]} Nb6
{[%clk 01:17:52]} {[%emt 00:03:00]} 9. Bb3 {[%clk 01:26:55]} {[%emt 00:00:06]}
Qc7 {[%clk 01:10:57]} {[%emt 00:07:24]} 10. Na3 {[%clk 01:15:54]} {[%emt
00:11:31]} Bd7 {[%clk 01:07:33]} {[%emt 00:03:54]} 11. Be3 {[%clk 01:09:11]}
{[%emt 00:07:12]} c4 {[%clk 01:01:35]} {[%emt 00:06:29]} 12. Bc2 {[%clk
01:09:32]} {[%emt 00:00:09]} Nd5 {[%clk 00:59:46]} {[%emt 00:02:19]} 13. Qe2
{[%clk 00:59:57]} {[%emt 00:10:05]} b5 {[%clk 00:51:58]} {[%emt 00:08:18]} 14.
Nb1 {[%clk 00:54:02]} {[%emt 00:06:25]} Nc6 {[%clk 00:38:06]} {[%emt 00:14:22]}
15. Nbd2 {[%clk 00:54:01]} {[%emt 00:00:31]} f5 {[%clk 00:36:13]} {[%emt
00:02:23]} 16. g3 {[%clk 00:42:42]} {[%emt 00:11:49]} Rae8 {[%clk 00:35:03]}
{[%emt 00:01:40]} 17. a4 {[%clk 00:37:44]} {[%emt 00:05:27]} a6 {[%clk
00:34:39]} {[%emt 00:00:55]} 18. axb5 {[%clk 00:37:21]} {[%emt 00:00:53]} axb5
{[%clk 00:35:08]} 19. Ne5 {[%clk 00:36:44]} {[%emt 00:01:07]} Nxe5 {[%clk
00:22:40]} {[%emt 00:12:58]} 20. dxe5 {[%clk 00:37:10]} {[%emt 00:00:05]} Bxe5
{[%clk 00:22:47]} {[%emt 00:00:22]} 21. Ra7 {[%clk 00:37:04]} {[%emt 00:00:35]}
Qc8 {[%clk 00:22:12]} {[%emt 00:01:05]} 22. Nf3 {[%clk 00:25:36]} {[%emt
00:11:58]} Bb8 {[%clk 00:21:27]} {[%emt 00:01:16]} 23. Raa1 {[%clk 00:22:09]}
{[%emt 00:03:56]} e5 {[%clk 00:19:41]} {[%emt 00:02:16]} 24. Rfd1 {[%clk
00:20:54]} {[%emt 00:01:45]} Bc6 {[%clk 00:17:45]} {[%emt 00:02:27]} 25. Nh4
{[%clk 00:14:55]} {[%emt 00:06:29]} Nxe3 {[%clk 00:13:13]} {[%emt 00:05:01]} 26.
Qxe3 {[%clk 00:14:07]} {[%emt 00:01:18]} Bb7 {[%clk 00:12:58]} {[%emt
00:00:46]} 27. Qg5 {[%clk 00:10:32]} {[%emt 00:04:04]} Qc6 {[%clk 00:12:24]}
{[%emt 00:01:04]} 28. f3 {[%clk 00:10:59]} {[%emt 00:00:04]} h6 {[%clk
00:09:04]} {[%emt 00:03:50]} 29. Qh5 {[%clk 00:10:34]} {[%emt 00:00:54]} e4
{[%clk 00:07:21]} {[%emt 00:02:14]} 30. Nxf5 {[%clk 00:04:18]} {[%emt
00:06:46]} Qc5+ {[%clk 00:07:40]} {[%emt 00:00:11]} 31. Rd4 {[%clk 00:02:39]}
{[%emt 00:02:09]} Qxf5 {[%clk 00:07:56]} {[%emt 00:00:13]} 32. Qxf5 {[%clk
00:03:06]} {[%emt 00:00:02]} Rxf5 {[%clk 00:08:19]} {[%emt 00:00:07]} 33. Bxe4
{[%clk 00:03:31]} {[%emt 00:00:05]} Bxe4 {[%clk 00:08:38]} {[%emt 00:00:11]} 34.
fxe4 {[%clk 00:03:58]} {[%emt 00:00:03]} Rfe5 {[%clk 00:06:44]} {[%emt
00:02:24]} 35. Rd5 {[%clk 00:03:39]} {[%emt 00:00:50]} Rxd5 {[%clk 00:06:50]}
{[%emt 00:00:23]} 36. exd5 {[%clk 00:04:06]} {[%emt 00:00:03]} Bc7 {[%clk
00:07:03]} {[%emt 00:00:17]} 37. Kf2 {[%clk 00:03:48]} {[%emt 00:00:48]} Rd8
{[%clk 00:06:53]} {[%emt 00:00:40]} 38. Rd1 {[%clk 00:04:11]} {[%emt 00:00:07]}
Bb6+ {[%clk 00:07:08]} {[%emt 00:00:16]} 39. Kf3 {[%clk 00:04:36]} {[%emt
00:00:05]} Kf7 {[%clk 00:07:22]} {[%emt 00:00:15]} 40. Kf4 {[%clk 00:03:44]}
{[%emt 00:01:21]} Kf6 {[%clk 00:06:40]} {[%emt 00:01:13]} 41. h4 {[%clk
00:03:41]} {[%emt 00:00:34]} Bc5 {[%clk 00:03:10]} {[%emt 00:03:59]} 42. g4
{[%clk 00:03:39]} {[%emt 00:00:33]} g5+ {[%clk 00:26:24]} {[%emt 00:07:15]} 43.
hxg5+ {[%clk 00:34:07]} {[%emt 00:00:02]} hxg5+ {[%clk 00:26:51]} {[%emt
00:00:04]} 44. Ke4 {[%clk 00:33:52]} {[%emt 00:00:46]} Re8+ {[%clk 00:25:43]}
{[%emt 00:01:37]} 45. Kf3 {[%clk 00:34:17]} {[%emt 00:00:04]} Re3+ {[%clk
00:21:29]} {[%emt 00:04:45]} 46. Kg2 {[%clk 00:34:46]} {[%emt 00:00:01]} Ke5
{[%clk 00:20:51]} {[%emt 00:01:08]} 47. Rf1 {[%clk 00:35:02]} {[%emt 00:00:14]}
Kxd5 {[%clk 00:21:12]} {[%emt 00:00:08]} 48. Rf5+ {[%clk 00:35:25]} {[%emt
00:00:07]} Re5 {[%clk 00:21:37]} {[%emt 00:00:06]} 0-1

[Event "NJSK 2022 Jeugd B"]
[Site "Almelo, Netherlands"]
[Date "2022.05.07"]
[Round "7.1"]
[White "Klaren, Oscar"]
[Black "Slagboom, Leandro"]
[Result "0-1"]
[TimeControl "90min/40moves + 30min + 30sec/move"]
[WhiteElo "1878"]
[BlackElo "1997"]

1. e4 {[%clk 01:30:56]} {[%emt 00:00:04]} c5 {[%clk 01:30:46]} {[%emt
00:00:14]} 2. Nf3 {[%clk 01:31:21]} {[%emt 00:00:04]} a6 {[%clk 01:31:11]}
{[%emt 00:00:06]} 3. c3 {[%clk 01:28:42]} {[%emt 00:03:09]} d5 {[%clk
01:30:33]} {[%emt 00:01:09]} 4. exd5 {[%clk 01:28:25]} {[%emt 00:00:46]} Qxd5
{[%clk 01:30:56]} {[%emt 00:00:07]} 5. d4 {[%clk 01:28:04]} {[%emt 00:00:51]}
Nf6 {[%clk 01:30:56]} {[%emt 00:00:31]} 6. Na3 {[%clk 01:27:37]} {[%emt
00:00:57]} cxd4 {[%clk 01:30:34]} {[%emt 00:00:51]} 7. Bc4 {[%clk 01:23:49]}
{[%emt 00:04:17]} Qe4+ {[%clk 01:28:20]} {[%emt 00:02:44]} 8. Be3 {[%clk
01:24:03]} {[%emt 00:00:17]} e6 {[%clk 01:20:05]} {[%emt 00:08:45]} 9. Qxd4
{[%clk 01:22:47]} {[%emt 00:01:46]} Qxd4 {[%clk 01:15:36]} {[%emt 00:04:59]} 10.
Bxd4 {[%clk 01:21:30]} {[%emt 00:01:47]} Bxa3 {[%clk 01:09:49]} {[%emt
00:06:17]} 11. bxa3 {[%clk 01:21:52]} {[%emt 00:00:08]} Nc6 {[%clk 01:00:20]}
{[%emt 00:09:58]} 12. Bb6 {[%clk 01:09:35]} {[%emt 00:12:48]} Nd7 {[%clk
00:55:36]} {[%emt 00:05:15]} 13. Be3 {[%clk 01:04:34]} {[%emt 00:05:31]} b5
{[%clk 00:52:15]} {[%emt 00:03:50]} 14. Be2 {[%clk 01:04:10]} {[%emt 00:00:53]}
Na5 {[%clk 00:47:28]} {[%emt 00:05:18]} 15. Nd2 {[%clk 00:57:24]} {[%emt
00:07:15]} Bb7 {[%clk 00:44:26]} {[%emt 00:03:33]} 16. O-O {[%clk 00:52:13]}
{[%emt 00:05:41]} Bd5 {[%clk 00:40:07]} {[%emt 00:04:49]} 17. Rfc1 {[%clk
00:51:19]} {[%emt 00:01:23]} Rc8 {[%clk 00:38:43]} {[%emt 00:01:55]} 18. a4
{[%clk 00:48:34]} {[%emt 00:03:16]} Nc4 {[%clk 00:32:00]} {[%emt 00:07:12]} 19.
axb5 {[%clk 00:47:31]} {[%emt 00:01:34]} axb5 {[%clk 00:31:56]} {[%emt
00:00:34]} 20. Nxc4 {[%clk 00:44:08]} {[%emt 00:03:53]} bxc4 {[%clk 00:31:43]}
{[%emt 00:00:42]} 21. Bd4 {[%clk 00:36:53]} {[%emt 00:07:46]} Ke7 {[%clk
00:29:58]} {[%emt 00:02:15]} 22. f3 {[%clk 00:33:32]} {[%emt 00:03:51]} e5
{[%clk 00:29:47]} {[%emt 00:00:41]} 23. Be3 {[%clk 00:33:19]} {[%emt 00:00:42]}
f5 {[%clk 00:28:52]} {[%emt 00:01:25]} 24. g3 {[%clk 00:30:56]} {[%emt
00:02:53]} Nc5 {[%clk 00:24:14]} {[%emt 00:05:08]} 25. Bxc5+ {[%clk 00:26:14]}
{[%emt 00:05:12]} Rxc5 {[%clk 00:24:42]} {[%emt 00:00:02]} 26. Rcb1 {[%clk
00:24:43]} {[%emt 00:02:02]} g5 {[%clk 00:23:42]} {[%emt 00:01:29]} 27. a4
{[%clk 00:23:10]} {[%emt 00:02:03]} Kd7 {[%clk 00:22:24]} {[%emt 00:01:49]} 28.
Rb6 {[%clk 00:17:01]} {[%emt 00:06:39]} h5 {[%clk 00:20:44]} {[%emt 00:02:09]}
29. Rab1 {[%clk 00:14:30]} {[%emt 00:03:02]} g4 {[%clk 00:17:31]} {[%emt
00:03:43]} 30. Kf2 {[%clk 00:13:48]} {[%emt 00:01:11]} Ra8 {[%clk 00:14:23]}
{[%emt 00:03:38]} 31. Bd1 {[%clk 00:08:59]} {[%emt 00:05:20]} Bc6 {[%clk
00:12:09]} {[%emt 00:02:44]} 32. Bc2 {[%clk 00:08:12]} {[%emt 00:01:17]} gxf3
{[%clk 00:11:34]} {[%emt 00:01:05]} 33. Bxf5+ {[%clk 00:08:26]} {[%emt
00:00:15]} Kc7 {[%clk 00:10:04]} {[%emt 00:02:00]} 34. Bc2 {[%clk 00:07:18]}
{[%emt 00:01:38]} Rd8 {[%clk 00:08:19]} {[%emt 00:02:16]} 35. Ke3 {[%clk
00:04:04]} {[%emt 00:03:44]} f2 {[%clk 00:07:10]} {[%emt 00:01:39]} 36. R6b4
{[%clk 00:04:09]} {[%emt 00:00:25]} Bg2 {[%clk 00:04:37]} {[%emt 00:03:03]} 37.
Ke2 {[%clk 00:01:05]} {[%emt 00:03:34]} f1=Q+ {[%clk 00:04:40]} {[%emt
00:00:27]} 38. Rxf1 {[%clk 00:01:31]} {[%emt 00:00:04]} Bxf1+ {[%clk 00:05:04]}
{[%emt 00:00:06]} 39. Kxf1 {[%clk 00:01:58]} {[%emt 00:00:03]} Rd2 {[%clk
00:04:33]} {[%emt 00:01:01]} 40. Be4 {[%clk 00:01:45]} {[%emt 00:00:43]} Rxh2
{[%clk 00:03:41]} {[%emt 00:01:22]} 41. Rb7+ {[%clk 00:01:05]} {[%emt
00:01:10]} Kd6 {[%clk 00:02:34]} {[%emt 00:01:37]} 42. Rh7 {[%clk 00:24:49]}
{[%emt 00:06:46]} Ra2 {[%clk 00:22:20]} {[%emt 00:10:44]} 43. Rh6+ {[%clk
00:24:57]} {[%emt 00:00:22]} Ke7 {[%clk 00:20:53]} {[%emt 00:01:57]} 44. Rxh5
{[%clk 00:25:06]} {[%emt 00:00:20]} Ra3 {[%clk 00:19:13]} {[%emt 00:02:10]} 45.
Kg2 {[%clk 00:24:17]} {[%emt 00:01:19]} Rxc3 {[%clk 00:19:21]} {[%emt
00:00:23]} 46. Kh3 {[%clk 00:24:40]} {[%emt 00:00:07]} Re3 {[%clk 00:18:45]}
{[%emt 00:01:05]} 47. Bc2 {[%clk 00:23:30]} {[%emt 00:01:40]} Re2 {[%clk
00:18:34]} {[%emt 00:00:42]} 48. Bd1 {[%clk 00:23:44]} {[%emt 00:00:16]} Rd2
{[%clk 00:18:39]} {[%emt 00:00:24]} 0-1